fUST/lending_fUST_20251003
["ID","MTS","AMOUNT","RATE_DAILY","PERIOD"]
[388921529,1759504241760,-487.796912,0.0001905,2]
[388921530,1759504241770,-487.796912,0.0001905,2]
[388921531,1759504241779,-487.796912,0.0001905,2]
[388921532,1759504241789,-487.796902,0.0001905,2]
[388921533,1759504241799,-151.0,0.0001905,2]
[388921534,1759504241809,-606.805003,0.0001905,2]
[388921535,1759504241820,-606.805003,0.0001905,2]
[388921536,1759504241830,-606.805003,0.0001905,2]
[388921537,1759504241839,-606.804995,0.0001905,2]
[388921538,1759504241849,-660.09,0.00019052,3]
[388921539,1759504241860,-330.05,0.00019052,3]
[388921540,1759504241870,-3000.0,0.0001906,2]
[388921541,1759504241881,-200.55893668,0.00019062,2]
[388921542,1759504241891,-151.0,0.00019062,2]
[388921543,1759504241900,-151.0,0.00019062,2]
[388921544,1759504241910,-151.0,0.00019062,2]
[388921545,1759504241920,-183875.64681945,0.00019063,7]
[388921546,1759504241930,-293.47406221,0.00019063,7]
[388921547,1759504241940,-30132.5,0.00019063,7]
[388921548,1759504241950,-500.0,0.00019063,2]
[388921549,1759504241960,-300.48882404,0.00019066,2]
[388921550,1759504241969,-151.0,0.00019066,2]
[388921551,1759504241979,-500.0,0.00019066,2]
[388921552,1759504241989,-500.0,0.00019066,2]
[388921553,1759504241998,-151.0,0.00019066,2]
[388921554,1759504242008,-151.0,0.00019066,2]
[388921555,1759504242018,-151.0,0.00019066,2]
[388921556,1759504242028,-940.0,0.00019066,2]
[388921557,1759504242038,-500.0,0.00019066,2]
[388921558,1759504242048,-152.8314969,0.00019066,2]
[388921559,1759504242057,-151.0,0.00019066,2]
[388921560,1759504242067,-249.91228481,0.00019066,2]
[388921561,1759504242076,-347.0,0.00019067,2]
[388921562,1759504242085,-3000.0,0.0001907,2]
[388921563,1759504242095,-500.0,0.00019073,2]
[388921564,1759504242105,-500.0,0.00019073,2]
[388921565,1759504242115,-176.82210398,0.00019073,2]
[388921566,1759504242124,-501.12580455,0.00019073,2]
[388921567,1759504242137,-514.21502266,0.00019073,2]
[388921568,1759504242147,-500.40492947,0.00019073,2]
[388921569,1759504242156,-403.49096014,0.00019073,2]
[388921570,1759504242166,-500.0,0.00019073,2]
[388921571,1759504242176,-501.66895103,0.00019073,2]
[388921572,1759504242186,-500.0,0.00019073,2]
[388921573,1759504242196,-500.0,0.00019073,2]
[388921574,1759504242205,-500.0,0.00019073,2]
[388921575,1759504242215,-500.0,0.00019073,2]
[388921576,1759504242225,-500.0,0.00019073,2]
[388921577,1759504242235,-500.0,0.00019073,2]
[388921578,1759504242245,-3000.0,0.0001908,2]
[388921579,1759504242254,-4282.86820015,0.00019087,2]
[388921580,1759504242264,-3000.0,0.0001909,2]
[388921581,1759504242274,-4313.401922,0.000191,2]
[388921582,1759504242283,-151.0,0.000191,2]
[388921583,1759504242294,-7107.41262646,0.00019121,2]
[388921584,1759504242303,-500.0,0.0001915,2]
[388921585,1759504242313,-500.80658169,0.0001915,2]
[388921586,1759504242323,-500.0,0.0001915,2]
[388921587,1759504242332,-151.0,0.00019178,2]
[388921588,1759504242342,-2075.41788514,0.00019179,2]
[388921589,1759504242352,-150.0,0.000192,2]
[388921590,1759504242363,-151.0,0.000192,2]
[388921591,1759504242372,-436.0,0.00019247,2]
[388921592,1759504242383,-500.0,0.00019248,2]
[388921593,1759504242394,-423.618841,0.00019295,7]
[388921594,1759504242404,-151.0,0.000193,2]
[388921595,1759504242417,-151.0,0.000193,2]
[388921596,1759504242426,-151.0,0.000193,2]
[388921597,1759504242436,-500.34755871,0.00019321,2]
[388921598,1759504242449,-503.39666412,0.00019321,2]
[388921599,1759504242461,-1000.0,0.00019321,2]
[388921600,1759504242472,-515.0126683,0.00019321,2]
[388921601,1759504242482,-457.28672357,0.00019321,2]
[388921602,1759504242494,-1000.0,0.00019321,2]
[388921603,1759504242505,-1000.0,0.00019321,2]
[388921604,1759504242515,-1069.22569794,0.00019321,2]
[388921605,1759504242525,-500.0,0.00019321,2]
[388921606,1759504242535,-1000.0,0.00019321,2]
[388921607,1759504242544,-500.0,0.00019321,2]
[388921608,1759504242555,-1000.0,0.00019321,2]
[388921609,1759504242564,-1000.0,0.00019321,2]
[388921610,1759504242575,-1000.0,0.00019321,2]
[388921611,1759504242585,-1000.0,0.00019321,2]
[388921613,1759504242595,-509.79284983,0.00019321,2]
[388921615,1759504242605,-1000.0,0.00019321,2]
[388921616,1759504242614,-1000.0,0.00019321,2]
[388921618,1759504242624,-1000.0,0.00019321,2]
[388921620,1759504242635,-1000.0,0.00019321,2]
[388921622,1759504242646,-1000.0,0.00019321,2]
[388921623,1759504242655,-500.0,0.00019321,2]
[388921624,1759504242664,-1000.0,0.00019321,2]
[388921625,1759504242674,-500.0,0.00019321,2]
[388921626,1759504242684,-1000.0,0.00019321,2]
[388921628,1759504242694,-1000.0,0.00019321,2]
[388921629,1759504242704,-1000.0,0.00019321,2]
[388921630,1759504242715,-1000.0,0.00019321,2]
[388921631,1759504242724,-478.94479188,0.00019321,2]
[388921633,1759504242735,-1000.0,0.00019321,2]
[388921635,1759504242746,-1000.0,0.00019321,2]
[388921637,1759504242756,-500.0,0.00019321,2]
[388921638,1759504242766,-1000.0,0.00019321,2]
[388921641,1759504242776,-1000.0,0.00019321,2]
[388921642,1759504242786,-501.05578111,0.00019321,2]
[388921643,1759504242796,-1000.0,0.00019321,2]
[388921644,1759504242806,-500.0,0.00019321,2]
[388921646,1759504242817,-500.0,0.00019323,2]
[388921648,1759504242827,-500.0,0.00019337,2]
[388921649,1759504242837,-151.0,0.0001934,2]
[388921650,1759504242847,-500.0,0.0001934,2]
[388921651,1759504242857,-359.09116848,0.0001934,2]
[388921652,1759504242867,-151.0,0.0001934,2]
[388921653,1759504242877,-151.0,0.0001934,2]
[388921654,1759504242887,-151.0,0.0001934,2]
[388921655,1759504242898,-940.0,0.0001934,2]
[388921656,1759504242908,-385.60228399,0.0001934,2]
[388921657,1759504242918,-200.93799873,0.0001934,2]
[388921658,1759504242928,-151.0,0.000194,2]
[388921659,1759504242939,-549.0,0.00019424,2]
[388921660,1759504242949,-999.9999991,0.0001945,2]
[388921661,1759504242958,-151.0,0.00019452,2]
[388921662,1759504242968,-260.0,0.000195,2]
[388921663,1759504242978,-167.21,0.000195,2]
[388921664,1759504242988,-151.0,0.000195,2]
[388921665,1759504242998,-151.0,0.000195,2]
[388921666,1759504243012,-500.0,0.00019597,2]
[388921667,1759504243023,-293.47406221,0.000196,7]
[388921668,1759504243033,-151.0,0.000196,2]
[388921669,1759504243043,-500.0,0.00019611,2]
[388921670,1759504243054,-201.04755491,0.00019614,2]
[388921671,1759504243064,-500.0,0.00019614,2]
[388921672,1759504243074,-226.18335854,0.00019614,2]
[388921673,1759504243085,-247.45208509,0.00019614,2]
[388921674,1759504243095,-290.90470199,0.00019614,2]
[388921675,1759504243104,-940.0,0.00019614,2]
[388921676,1759504243114,-1000.0,0.00019621,2]
[388921677,1759504243124,-463.64877737,0.00019621,2]
[388921678,1759504243135,-501.16214753,0.00019621,2]
[388921679,1759504243146,-500.80290947,0.00019621,2]
[388921680,1759504243155,-1000.0,0.00019621,2]
[388921681,1759504243166,-1000.0,0.00019621,2]
[388921682,1759504243175,-1000.0,0.00019621,2]
[388921683,1759504243185,-838.18235091,0.00019698,2]
[388921684,1759504243194,-151.0,0.000197,2]
[388921685,1759504243204,-151.0,0.000197,2]
[388921686,1759504243214,-151.0,0.000197,2]
[388921687,1759504243224,-151.0,0.00019726,2]
[388921688,1759504243234,-300.0,0.00019793,2]
[388921689,1759504243246,-300.0,0.00019793,2]
[388921690,1759504243257,-300.0,0.00019793,2]
[388921691,1759504243267,-300.0,0.00019793,2]
[388921692,1759504243277,-300.0,0.00019793,2]
[388921693,1759504243287,-300.0,0.00019793,2]
[388921694,1759504243297,-300.0,0.00019793,2]
[388921695,1759504243307,-300.0,0.00019793,2]
[388921696,1759504243316,-300.0,0.00019793,2]
[388921697,1759504243326,-300.0,0.00019793,2]
[388921698,1759504243335,-300.0,0.00019793,2]
[388921699,1759504243347,-300.0,0.00019793,2]
[388921700,1759504243357,-300.0,0.00019793,2]
[388921701,1759504243367,-300.0,0.00019793,2]
[388921702,1759504243376,-300.0,0.00019793,2]
[388921703,1759504243387,-600.0,0.00019793,2]
[388921704,1759504243397,-500.0,0.00019795,2]
[388921705,1759504243408,-1000.0,0.000198,2]
[388921706,1759504243423,-160.0,0.00019811,2]
[388921707,1759504243433,-1500.0,0.00019868,2]
[388921708,1759504243443,-271.96001525,0.00019868,2]
[388921709,1759504243453,-1500.0,0.00019868,2]
[388921710,1759504243465,-1500.0,0.00019868,2]
[388921711,1759504243475,-1500.0,0.00019868,2]
[388921712,1759504243485,-1500.0,0.00019868,2]
[388921713,1759504243496,-502.28253466,0.00019868,2]
[388921714,1759504243506,-1500.0,0.00019868,2]
[388921715,1759504243516,-1113.83341633,0.00019868,2]
[388921716,1759504243526,-1500.0,0.00019868,2]
[388921717,1759504243536,-1500.0,0.00019868,2]
[388921718,1759504243546,-1000.0,0.00019868,2]
[388921719,1759504243556,-1500.0,0.00019868,2]
[388921720,1759504243565,-1500.0,0.00019868,2]
[388921721,1759504243575,-1000.0,0.00019868,2]
[388921727,1759504243740,-1138.410385,0.00019868,2]
[388921730,1759504243769,-768.47350391,0.00019868,2]
[388921732,1759504243779,-500.0,0.00019871,2]
[388921734,1759504243789,-500.0,0.00019885,2]
[388921736,1759504243799,-500.0,0.00019888,2]
[388921738,1759504243809,-940.0,0.00019888,2]
[388921739,1759504243819,-151.0,0.000199,2]
[388921740,1759504243829,-3294.699932,0.000199,2]
[388921742,1759504243839,-151.0,0.000199,2]
[388921743,1759504243848,-5000.0,0.0001995,2]
[388921746,1759504243857,-1062.38324589,0.0001998,2]
[388921749,1759504243867,-151.62483946,0.0002,2]
[388921751,1759504243876,-70375.0,0.0002,7]
[388921753,1759504243887,-151.0,0.0002,4]
[388921754,1759504243896,-151.0,0.0002,2]
[388921755,1759504243906,-150.0,0.0002,2]
[388921756,1759504243916,-150.0,0.0002,2]
[388921757,1759504243926,-150.0,0.0002,2]
[388921758,1759504243936,-150.0,0.0002,2]
[388921759,1759504243945,-150.0,0.0002,2]
[388921760,1759504243956,-150.0,0.0002,2]
[388921761,1759504243965,-150.0,0.0002,2]
[388921762,1759504243975,-150.0,0.0002,2]
[388921763,1759504243984,-150.0,0.0002,2]
[388921764,1759504243994,-150.0,0.0002,2]
[388921765,1759504244003,-150.0,0.0002,2]
[388921766,1759504244013,-150.0,0.0002,2]
[388921767,1759504244022,-150.0,0.0002,2]
[388921768,1759504244031,-150.0,0.0002,2]
[388921769,1759504244040,-150.0,0.0002,2]
[388921770,1759504244050,-150.0,0.0002,2]
[388921771,1759504244060,-150.0,0.0002,2]
[388921772,1759504244070,-150.0,0.0002,2]
[388921773,1759504244079,-150.0,0.0002,2]
[388921774,1759504244089,-150.0,0.0002,2]
[388921775,1759504244099,-150.0,0.0002,2]
[388921776,1759504244108,-150.0,0.0002,2]
[388921777,1759504244117,-150.0,0.0002,2]
[388921778,1759504244127,-150.0,0.0002,2]
[388921779,1759504244140,-150.0,0.0002,2]
[388921780,1759504244151,-150.0,0.0002,2]
[388921781,1759504244160,-150.0,0.0002,2]
[388921782,1759504244170,-150.0,0.0002,2]
[388921783,1759504244179,-150.0,0.0002,2]
[388921784,1759504244189,-150.0,0.0002,2]
[388921785,1759504244199,-150.0,0.0002,2]
[388921786,1759504244208,-150.0,0.0002,2]
[388921787,1759504244218,-150.0,0.0002,2]
[388921789,1759504244228,-150.0,0.0002,2]
[388921790,1759504244238,-150.0,0.0002,2]
[388921791,1759504244250,-150.0,0.0002,2]
[388921793,1759504244260,-150.0,0.0002,2]
[388921795,1759504244270,-150.0,0.0002,2]
[388921796,1759504244281,-150.0,0.0002,2]
[388921797,1759504244290,-150.0,0.0002,2]
[388921798,1759504244300,-4000.0,0.0002,4]
[388921800,1759504244310,-4000.0,0.00020096,2]
[388921801,1759504244319,-151.0,0.000201,4]
[388921802,1759504244328,-168.0,0.00020138,2]
[388921803,1759504244338,-500.0,0.00020145,2]
[388921804,1759504244347,-330.04,0.00020153,3]
[388921805,1759504244356,-500.0,0.00020159,2]
[388921806,1759504244365,-500.0,0.00020162,2]
[388921807,1759504244373,-940.0,0.00020162,2]
[388921808,1759504244384,-500.0,0.00020168,2]
[388921809,1759504244393,-539.70751924,0.00020168,2]
[388921810,1759504244402,-500.0,0.00020168,2]
[388921811,1759504244414,-1013.09521124,0.00020168,2]
[388921812,1759504244424,-168.0,0.00020187,2]
[388921814,1759504244433,-293.47406221,0.000202,7]
[388921816,1759504244442,-151.0,0.000202,3]
[388921818,1759504244451,-151.0,0.000202,3]
[388921820,1759504244461,-168.0,0.00020255,2]
[388921821,1759504244470,-168.0,0.00020259,2]
[388921822,1759504244479,-412.31026659,0.00020281,2]
[388921823,1759504244490,-151.0,0.000203,3]
[388921824,1759504244498,-168.0,0.00020315,2]
[388921825,1759504244507,-420.0,0.00020381,2]
[388921826,1759504244516,-151.0,0.000204,3]
[388921827,1759504244525,-151.0,0.000204,3]
[388921828,1759504244534,-160.0,0.000204,2]
[388921829,1759504244543,-168.0,0.00020405,2]
[388921830,1759504244552,-2000.0,0.00020416,2]
[388921831,1759504244561,-2000.0,0.00020416,2]
[388921832,1759504244570,-709.15918496,0.00020416,2]
[388921833,1759504244579,-2000.0,0.00020416,2]
[388921834,1759504244588,-2000.0,0.00020416,2]
[388921835,1759504244597,-2000.0,0.00020416,2]
[388921836,1759504244606,-593.99928753,0.00020416,2]
[388921837,1759504244615,-2000.0,0.00020416,2]
[388921838,1759504244623,-2000.0,0.00020416,2]
[388921839,1759504244633,-500.0,0.00020419,2]
[388921840,1759504244642,-1320.18,0.00020422,3]
[388921841,1759504244651,-660.1,0.00020422,3]
[388921842,1759504244660,-500.0,0.00020433,2]
[388921843,1759504244669,-940.0,0.00020436,2]
[388921844,1759504244678,-168.0,0.00020461,2]
[388921845,1759504244690,-168.0,0.00020464,2]
[388921846,1759504244699,-168.0,0.00020479,2]
[388921847,1759504244708,-1020.0,0.0002048,2]
[388921848,1759504244717,-151.0,0.000205,4]
[388921849,1759504244726,-168.0,0.00020567,2]
[388921850,1759504244735,-311.0,0.000206,2]
[388921851,1759504244744,-151.0,0.000206,3]
[388921852,1759504244753,-168.0,0.00020633,2]
[388921853,1759504244762,-168.0,0.00020646,2]
[388921854,1759504244771,-168.0,0.00020665,2]
[388921855,1759504244780,-500.0,0.00020693,2]
[388921856,1759504244789,-151.0,0.000207,3]
[388921857,1759504244798,-500.0,0.00020707,2]
[388921858,1759504244807,-940.0,0.0002071,2]
[388921859,1759504244816,-168.0,0.0002076,2]
[388921860,1759504244825,-151.0,0.000209,4]
[388921861,1759504244834,-168.0,0.00020929,2]
[388921862,1759504244843,-260.0,0.00020948,2]
[388921863,1759504244853,-168.0,0.00020952,2]
[388921864,1759504244862,-2500.0,0.00020964,2]
[388921865,1759504244871,-2500.0,0.00020964,2]
[388921866,1759504244883,-1000.0,0.00020964,2]
[388921867,1759504244892,-2500.0,0.00020964,2]
[388921868,1759504244902,-2500.0,0.00020964,2]
[388921869,1759504244912,-2500.0,0.00020964,2]
[388921870,1759504244922,-2500.0,0.00020964,2]
[388921871,1759504244931,-500.0,0.00020967,2]
[388921872,1759504244941,-500.0,0.00020981,2]
[388921873,1759504244950,-940.0,0.00020984,2]
[388921874,1759504244961,-3000.0,0.00021,2]
[388921875,1759504244971,-3000.0,0.0002101,2]
[388921876,1759504244980,-3000.0,0.0002102,2]
[388921878,1759504244990,-3000.0,0.0002103,2]
[388921879,1759504244999,-3000.0,0.0002104,2]
[388921880,1759504245009,-3000.0,0.0002105,2]
[388921881,1759504245018,-3000.0,0.0002106,2]
[388921882,1759504245027,-3000.0,0.0002107,2]
[388921883,1759504245036,-3000.0,0.0002108,2]
[388921884,1759504245045,-3000.0,0.0002109,2]
[388921885,1759504245056,-3000.0,0.000211,2]
[388921886,1759504245065,-3000.0,0.0002111,2]
[388921887,1759504245074,-3000.0,0.0002112,2]
[388921888,1759504245084,-3000.0,0.0002113,2]
[388921889,1759504245093,-3000.0,0.0002114,2]
[388921890,1759504245103,-3000.0,0.0002115,2]
[388921891,1759504245113,-3000.0,0.0002116,2]
[388921892,1759504245122,-3000.0,0.0002117,2]
[388921893,1759504245133,-3000.0,0.0002118,2]
[388921894,1759504245143,-3000.0,0.0002119,2]
[388921895,1759504245152,-3000.0,0.000212,2]
[388921896,1759504245162,-3000.0,0.0002121,2]
[388921897,1759504245171,-3000.0,0.0002122,2]
[388921898,1759504245180,-3000.0,0.0002123,2]
[388921900,1759504245190,-168.0,0.00021234,2]
[388921902,1759504245200,-3000.0,0.0002124,2]
[388921904,1759504245209,-32193.50812936,0.00021247,2]
[388921905,1759504245218,-3000.0,0.0002125,2]
[388921907,1759504245228,-500.0,0.00021255,2]
[388921908,1759504245237,-940.0,0.00021258,2]
[388921909,1759504245246,-3000.0,0.0002126,2]
[388921910,1759504245256,-3000.0,0.0002127,2]
[388921911,1759504245265,-3000.0,0.0002128,2]
[388921912,1759504245274,-998.862,0.00021284,2]
[388921913,1759504245284,-632.548,0.00021284,2]
[388921914,1759504245293,-2157.0,0.00021284,2]
[388921915,1759504245302,-2925.0,0.00021284,2]
[388921916,1759504245312,-3000.0,0.0002129,2]
[388921917,1759504245322,-3000.0,0.000213,2]
[388921918,1759504245331,-3000.0,0.0002131,2]
[388921919,1759504245341,-3000.0,0.0002132,2]
[388921920,1759504245351,-3000.0,0.0002133,2]
[388921921,1759504245360,-3000.0,0.0002134,2]
[388921922,1759504245369,-3000.0,0.0002135,2]
[388921923,1759504245379,-489.0,0.00021359,2]
[388921924,1759504245389,-3000.0,0.0002136,2]
[388921925,1759504245399,-3000.0,0.0002137,2]
[388921926,1759504245409,-3000.0,0.0002138,2]
[388921927,1759504245422,-3000.0,0.0002139,2]
[388921928,1759504245431,-3000.0,0.000214,2]
[388921929,1759504245441,-151.0,0.000214,3]
[388921930,1759504245451,-489.0,0.00021404,2]
[388921931,1759504245461,-3000.0,0.0002141,2]
[388921932,1759504245470,-150.0,0.00021411,2]
[388921933,1759504245479,-150.257,0.00021411,2]
[388921934,1759504245489,-264.91,0.00021411,2]
[388921935,1759504245499,-227.953,0.00021411,2]
[388921936,1759504245508,-250.0,0.00021411,2]
[388921937,1759504245517,-151.282,0.00021411,2]
[388921938,1759504245527,-295.099,0.00021411,2]
[388921939,1759504245537,-3000.0,0.0002142,2]
[388921940,1759504245547,-3000.0,0.0002143,2]
[388921941,1759504245556,-4744.615669,0.0002144,2]
[388921942,1759504245565,-489.0,0.00021457,2]
[388921943,1759504245574,-360.0,0.00021496,2]
[388921944,1759504245583,-1002.1152126,0.000215,2]
[388921945,1759504245593,-489.0,0.00021506,2]
[388921946,1759504245602,-2517.06270399,0.00021512,2]
[388921947,1759504245611,-2000.0,0.00021512,2]
[388921948,1759504245621,-3000.0,0.00021512,2]
[388921949,1759504245630,-2101.51520513,0.00021512,2]
[388921950,1759504245639,-3000.0,0.00021512,2]
[388921951,1759504245648,-3000.0,0.00021512,2]
[388921952,1759504245657,-500.0,0.00021529,2]
[388921953,1759504245666,-940.0,0.00021532,2]
[388921954,1759504245676,-489.0,0.00021578,2]
[388921955,1759504245685,-4000.0,0.00021667,4]
[388921956,1759504245695,-489.0,0.00021699,2]
[388921957,1759504245704,-720.0,0.00021773,20]
[388921958,1759504245714,-151.0,0.000218,3]
[388921959,1759504245723,-500.0,0.00021803,2]
[388921960,1759504245733,-940.0,0.00021806,2]
[388921961,1759504245743,-160.0,0.00021822,3]
[388921964,1759504245752,-489.0,0.00021826,2]
[388921965,1759504245763,-500.0,0.00021837,2]
[388921966,1759504245772,-500.0,0.00021837,2]
[388921967,1759504245782,-500.0,0.00021837,2]
[388921968,1759504245792,-500.0,0.00021837,2]
[388921969,1759504245802,-500.0,0.00021837,2]
[388921970,1759504245812,-587.06810454,0.00021837,2]
[388921971,1759504245821,-500.0,0.00021837,2]
[388921972,1759504245831,-500.0,0.00021837,2]
[388921973,1759504245841,-412.31026659,0.00021913,2]
[388921974,1759504245850,-151.0,0.00021918,2]
[388921975,1759504245859,-151.0,0.00021918,2]
[388921976,1759504245869,-164.336794,0.00021918,2]
[388921977,1759504245878,-151.0,0.00021918,2]
[388921978,1759504245889,-151.0,0.00021918,2]
[388921979,1759504245898,-284.395983,0.00021918,2]
[388921980,1759504245907,-500.0,0.00021918,2]
[388921981,1759504245917,-500.0,0.00021948,2]
[388921982,1759504245926,-159.93683256,0.00021948,2]
[388921983,1759504245936,-500.0,0.00021985,2]
[388921984,1759504245945,-500.0,0.00022001,2]
[388921985,1759504245954,-489.0,0.00022031,2]
[388921986,1759504245964,-460.0,0.00022044,2]
[388921987,1759504245973,-3000.0,0.0002206,2]
[388921988,1759504245982,-3500.0,0.0002206,2]
[388921989,1759504245991,-897.79929035,0.0002206,2]
[388921990,1759504246000,-500.0,0.00022077,5]
[388921995,1759504246136,-940.0,0.0002208,2]
[388921997,1759504246147,-501.98381386,0.00022088,2]
[388921998,1759504246157,-151.0,0.000222,7]
[388921999,1759504246167,-587.0,0.00022222,2]
[388922000,1759504246176,-500.0,0.00022351,5]
[388922001,1759504246186,-940.0,0.00022354,2]
[388922003,1759504246196,-500.0,0.00022373,2]
[388922004,1759504246205,-192.85289187,0.00022373,2]
[388922006,1759504246215,-500.0,0.00022373,2]
[388922008,1759504246224,-501.97506607,0.00022373,2]
[388922009,1759504246233,-257.49430392,0.00022373,2]
[388922010,1759504246242,-626.6077248,0.00022373,2]
[388922011,1759504246251,-500.0,0.00022373,2]
[388922012,1759504246260,-207.836,0.00022373,2]
[388922013,1759504246270,-482.14200005,0.00022373,2]
[388922014,1759504246279,-500.0,0.00022373,2]
[388922015,1759504246289,-500.0,0.00022373,2]
[388922016,1759504246298,-500.0,0.00022373,2]
[388922017,1759504246308,-500.0,0.00022373,2]
[388922018,1759504246317,-500.0,0.00022373,2]
[388922019,1759504246327,-500.0,0.00022373,2]
[388922020,1759504246336,-500.0,0.00022373,2]
[388922021,1759504246346,-500.0,0.00022373,2]
[388922023,1759504246356,-500.0,0.00022373,2]
[388922024,1759504246365,-500.0,0.00022373,2]
[388922025,1759504246375,-500.0,0.00022373,2]
[388922026,1759504246384,-420.24527893,0.00022373,2]
[388922027,1759504246394,-500.0,0.00022373,2]
[388922028,1759504246404,-199.68955216,0.00022373,2]
[388922029,1759504246417,-500.0,0.00022373,2]
[388922030,1759504246426,-500.0,0.00022373,2]
[388922031,1759504246436,-230.55829605,0.00022373,2]
[388922032,1759504246445,-500.0,0.00022373,2]
[388922034,1759504246455,-500.0,0.00022373,2]
[388922036,1759504246464,-500.0,0.00022373,2]
[388922038,1759504246474,-500.0,0.00022373,2]
[388922039,1759504246483,-500.0,0.00022373,2]
[388922040,1759504246495,-500.0,0.00022373,2]
[388922041,1759504246504,-500.0,0.00022373,2]
[388922042,1759504246515,-500.0,0.00022373,2]
[388922043,1759504246525,-500.0,0.00022373,2]
[388922044,1759504246535,-500.0,0.00022373,2]
[388922045,1759504246544,-500.0,0.00022373,2]
[388922046,1759504246553,-500.0,0.00022373,2]
[388922047,1759504246563,-526.75070492,0.00022373,2]
[388922048,1759504246573,-500.0,0.00022373,2]
[388922049,1759504246582,-500.0,0.00022373,2]
[388922050,1759504246592,-500.0,0.00022373,2]
[388922051,1759504246602,-500.0,0.00022373,2]
[388922052,1759504246611,-500.0,0.00022373,2]
[388922053,1759504246621,-501.02094094,0.00022373,2]
[388922054,1759504246631,-500.0,0.00022373,2]
[388922055,1759504246640,-501.31676744,0.00022373,2]
[388922056,1759504246650,-500.0,0.00022373,2]
[388922057,1759504246659,-500.0,0.00022373,2]
[388922058,1759504246669,-500.0,0.00022373,2]
[388922059,1759504246678,-501.9423807,0.00022373,2]
[388922060,1759504246687,-500.0,0.00022373,2]
[388922061,1759504246697,-500.0,0.00022373,2]
[388922062,1759504246706,-203.54885389,0.00022373,2]
[388922063,1759504246715,-500.0,0.00022373,2]
[388922064,1759504246726,-500.0,0.00022373,2]
[388922065,1759504246735,-500.0,0.00022373,2]
[388922066,1759504246744,-500.0,0.00022373,2]
[388922067,1759504246754,-500.0,0.00022373,2]
[388922068,1759504246763,-170.81190638,0.00022373,2]
[388922069,1759504246772,-500.0,0.00022373,2]
[388922070,1759504246782,-500.0,0.00022373,2]
[388922071,1759504246792,-150000.0,0.00022385,2]
[388922072,1759504246801,-112281.0517856,0.00022385,2]
[388922073,1759504246811,-500.0,0.00022385,2]
[388922074,1759504246821,-1015.93580635,0.00022385,2]
[388922075,1759504246831,-1000.0,0.00022385,2]
[388922076,1759504246840,-1106.43303815,0.00022385,2]
[388922077,1759504246850,-1000.0,0.00022385,2]
[388922078,1759504246859,-1000.0,0.00022385,2]
[388922079,1759504246868,-500.0,0.00022427,2]
[388922080,1759504246878,-611.58149059,0.00022496,2]
[388922081,1759504246888,-280.2,0.000225,2]
[388922082,1759504246897,-175.0,0.000225,3]
[388922083,1759504246907,-175.0,0.000225,3]
[388922084,1759504246916,-173.61606324,0.000225,3]
[388922085,1759504246926,-152.0,0.000225,3]
[388922086,1759504246935,-152.0,0.000225,3]